fUST/lending_fUST_20250724
["ID","MTS","AMOUNT","RATE_DAILY","PERIOD"]
[374579093,1753361464331,-305.714176,0.00024383,7]
[374579094,1753361464341,-737.21,0.00024383,2]
[374579095,1753361464352,-460.0,0.00024383,2]
[374579096,1753361464363,-259.200942,0.00024383,2]
[374579097,1753361464374,-460.0,0.00024383,2]
[374579098,1753361464385,-460.0,0.00024383,2]
[374579099,1753361464394,-1581.12,0.00024383,2]
[374579100,1753361464404,-1484.39,0.00024383,2]
[374579101,1753361464414,-213.58859441,0.00024383,2]
[374579102,1753361464424,-738.04,0.00024383,2]
[374579103,1753361464434,-460.0,0.00024383,2]
[374579104,1753361464446,-789.29,0.00024383,2]
[374579105,1753361464460,-161.64076098,0.00024383,2]
[374579106,1753361464470,-842.97,0.00024383,2]
[374579107,1753361464480,-460.0,0.00024383,2]
[374579108,1753361464490,-1729.15,0.00024383,2]
[374579109,1753361464500,-515.47,0.00024383,2]
[374579110,1753361464509,-462.73,0.00024383,2]
[374579111,1753361464521,-300.47,0.00024383,2]
[374579112,1753361464530,-460.0,0.00024383,2]
[374579113,1753361464540,-534.52,0.00024383,2]
[374579114,1753361464550,-460.0,0.00024383,2]
[374579115,1753361464560,-474.63,0.00024383,2]
[374579116,1753361464570,-613.8,0.00024383,2]
[374579117,1753361464580,-494.14,0.00024383,2]
[374579118,1753361464590,-710.33,0.00024383,2]
[374579119,1753361464600,-4098.54,0.00024383,2]
[374579120,1753361464610,-1354.19,0.00024383,2]
[374579121,1753361464620,-460.0,0.00024383,2]
[374579122,1753361464629,-557.79,0.00024383,2]
[374579123,1753361464641,-460.0,0.00024383,2]
[374579124,1753361464650,-608.79,0.00024383,2]
[374579125,1753361464660,-191.69,0.00024383,2]
[374579126,1753361464670,-716.07,0.00024383,2]
[374579127,1753361464680,-2936.37,0.00024383,2]
[374579128,1753361464690,-1289.01,0.00024383,2]
[374579129,1753361464700,-849.86,0.00024383,2]
[374579130,1753361464711,-2616.6,0.00024383,2]
[374579131,1753361464722,-2502.37,0.00024383,2]
[374579132,1753361464732,-1164.14,0.00024383,2]
[374579133,1753361464743,-1050.05,0.00024383,2]
[374579134,1753361464753,-159.9507963,0.00024384,2]
[374579135,1753361464763,-159.9507963,0.00024384,2]
[374579136,1753361464773,-500.0,0.00024394,2]
[374579137,1753361464783,-943.59,0.00024396,5]
[374579138,1753361464794,-292.055637,0.00024401,8]
[374579139,1753361464804,-155.497015,0.0002442,9]
[374579140,1753361464814,-155.497014,0.0002442,9]
[374579141,1753361464824,-265.88456767,0.00024484,2]
[374579142,1753361464834,-943.59,0.00024496,4]
[374579143,1753361464844,-1750.11156285,0.000245,2]
[374579144,1753361464854,-20776.90560323,0.000245,2]
[374579145,1753361465080,-13392.64439677,0.000245,2]
[374579146,1753361465089,-160.0,0.000245,7]
[374579147,1753361465099,-1123.41,0.000245,7]
[374579148,1753361465108,-1674.18014597,0.00024521,11]
[374579149,1753361465120,-429.7456075,0.00024548,2]
[374579150,1753361465134,-231.28369723,0.00024559,2]
[374579151,1753361465144,-227.2,0.0002457,7]
[374579152,1753361465154,-429.7456075,0.00024575,2]
[374579153,1753361465165,-429.7456075,0.00024575,2]
[374579154,1753361465175,-429.7456075,0.00024575,2]
[374579155,1753361465186,-429.7456075,0.00024575,2]
[374579156,1753361465197,-429.7456075,0.00024575,2]
[374579157,1753361465207,-943.59,0.00024596,5]
[374579158,1753361465217,-151.0,0.000246,7]
[374579159,1753361465227,-206.0,0.000246,2]
[374579160,1753361465236,-206.0,0.000246,2]
[374579161,1753361465246,-205.0,0.000246,2]
[374579162,1753361465256,-643.0,0.000246,2]
[374579163,1753361465266,-166.67,0.00024614,2]
[374579164,1753361465277,-596.0,0.00024621,2]
[374579165,1753361465287,-596.0,0.00024624,2]
[374579166,1753361465297,-151.0,0.0002465,7]
[374579167,1753361465307,-151.0,0.0002465,7]
[374579168,1753361465317,-151.0,0.0002465,7]
[374579169,1753361465327,-151.0,0.0002465,7]
[374579170,1753361465338,-737.21,0.00024657,2]
[374579171,1753361465348,-300.0,0.00024657,2]
[374579172,1753361465358,-300.0,0.00024657,2]
[374579173,1753361465369,-300.0,0.00024657,2]
[374579174,1753361465379,-300.0,0.00024657,2]
[374579175,1753361465390,-427.9252346,0.00024657,2]
[374579176,1753361465400,-460.0,0.00024657,2]
[374579177,1753361465410,-460.0,0.00024657,2]
[374579178,1753361465420,-460.0,0.00024657,2]
[374579179,1753361465429,-1581.12,0.00024657,2]
[374579180,1753361465439,-1484.39,0.00024657,2]
[374579181,1753361465451,-738.04,0.00024657,2]
[374579182,1753361465460,-460.0,0.00024657,2]
[374579183,1753361465470,-789.29,0.00024657,2]
[374579184,1753361465480,-842.97,0.00024657,2]
[374579185,1753361465490,-183.26611647,0.00024657,2]
[374579186,1753361465501,-1729.15,0.00024657,2]
[374579187,1753361465511,-515.47,0.00024657,2]
[374579188,1753361465521,-462.73,0.00024657,2]
[374579189,1753361465531,-460.0,0.00024657,2]
[374579190,1753361465541,-534.52,0.00024657,2]
[374579191,1753361465551,-460.0,0.00024657,2]
[374579192,1753361465560,-474.63,0.00024657,2]
[374579193,1753361465571,-613.8,0.00024657,2]
[374579194,1753361465582,-494.14,0.00024657,2]
[374579195,1753361465592,-710.33,0.00024657,2]
[374579196,1753361465603,-4098.54,0.00024657,2]
[374579197,1753361465613,-1354.19,0.00024657,2]
[374579198,1753361465623,-360.13,0.00024657,2]
[374579199,1753361465635,-557.79,0.00024657,2]
[374579200,1753361465646,-460.0,0.00024657,2]
[374579201,1753361465655,-608.79,0.00024657,2]
[374579202,1753361465665,-716.07,0.00024657,2]
[374579203,1753361465676,-2936.37,0.00024657,2]
[374579204,1753361465687,-1289.01,0.00024657,2]
[374579205,1753361465697,-849.86,0.00024657,2]
[374579206,1753361465707,-2616.6,0.00024657,2]
[374579207,1753361465717,-2502.37,0.00024657,2]
[374579208,1753361465727,-1164.14,0.00024657,2]
[374579209,1753361465737,-1050.05,0.00024657,2]
[374579210,1753361465747,-500.0,0.00024658,2]
[374579211,1753361465756,-151.0,0.00024658,2]
[374579212,1753361465765,-151.0,0.00024658,2]
[374579213,1753361465776,-201.04954806,0.00024658,2]
[374579214,1753361465787,-500.0,0.00024658,2]
[374579215,1753361465798,-151.0,0.00024658,2]
[374579216,1753361465807,-151.0,0.00024658,2]
[374579217,1753361465818,-200.27697752,0.00024658,2]
[374579218,1753361465828,-151.0,0.00024658,2]
[374579219,1753361465838,-151.0,0.00024658,2]
[374579220,1753361465847,-151.0,0.00024658,2]
[374579221,1753361465857,-151.23048046,0.00024658,2]
[374579222,1753361465867,-151.15357884,0.00024658,2]
[374579223,1753361465877,-249.59601864,0.00024658,2]
[374579224,1753361465888,-198.00000001,0.00024658,2]
[374579225,1753361465898,-712.0,0.00024658,2]
[374579226,1753361465908,-151.0,0.00024658,2]
[374579227,1753361465918,-151.0,0.00024658,2]
[374579228,1753361465928,-151.0,0.00024658,2]
[374579229,1753361465937,-500.0,0.00024658,2]
[374579230,1753361465947,-151.0,0.00024658,2]
[374579231,1753361465956,-151.76531155,0.00024658,2]
[374579232,1753361465966,-589.0,0.00024658,2]
[374579233,1753361465975,-151.0,0.00024658,2]
[374579234,1753361465986,-151.0,0.00024658,2]
[374579235,1753361465996,-519.0,0.00024658,2]
[374579236,1753361466005,-500.0,0.00024661,2]
[374579237,1753361466015,-155.497015,0.00024672,5]
[374579238,1753361466024,-153.0,0.00024685,2]
[374579239,1753361466034,-178.2667198,0.00024685,2]
[374579240,1753361466044,-178.2667198,0.00024685,2]
[374579241,1753361466053,-2200.0,0.00024693,2]
[374579242,1753361466063,-1674.18014597,0.00024693,11]
[374579243,1753361466074,-943.59,0.00024696,2]
[374579244,1753361466084,-6282.55,0.00024699,10]
[374579245,1753361466095,-800.0,0.00024701,2]
[374579246,1753361466105,-353.129568,0.00024712,2]
[374579247,1753361466115,-1154.905217,0.00024712,2]
[374579248,1753361466127,-811.43970814,0.00024731,2]
[374579249,1753361466138,-943.59,0.00024796,3]
[374579250,1753361466148,-430.26559,0.000248,7]
[374579251,1753361466158,-151.0,0.000248,7]
[374579252,1753361466168,-270.361468,0.000248,7]
[374579253,1753361466178,-430.26559,0.000248,7]
[374579254,1753361466188,-151.0,0.000248,7]
[374579255,1753361466198,-2000.0,0.000248,2]
[374579256,1753361466208,-155.497015,0.000248,14]
[374579257,1753361466217,-59620.95681304,0.000248,15]
[374579258,1753361466227,-150.0,0.000248,5]
[374579259,1753361466237,-1000.0,0.000248,2]
[374579260,1753361466247,-189.744645,0.000248,2]
[374579261,1753361466257,-1259.8357613,0.000248,2]
[374579262,1753361466267,-151.0,0.000248,7]
[374579263,1753361466276,-151.0,0.000248,7]
[374579264,1753361466285,-402.0,0.0002482,12]
[374579265,1753361466295,-1674.18014597,0.00024866,12]
[374579266,1753361466305,-500.0,0.00024873,2]
[374579267,1753361466316,-155.497015,0.00024875,30]
[374579268,1753361466326,-242.241813,0.00024888,7]
[374579269,1753361466336,-596.0,0.00024895,2]
[374579270,1753361466346,-943.67,0.00024896,4]
[374579271,1753361466355,-151.0,0.000249,7]
[374579272,1753361466367,-793.122708,0.000249,7]
[374579273,1753361466376,-793.122708,0.000249,7]
[374579274,1753361466387,-151.0,0.000249,7]
[374579275,1753361466396,-155.203952,0.000249,7]
[374579276,1753361466406,-305.714176,0.000249,7]
[374579277,1753361466415,-305.714176,0.000249,7]
[374579278,1753361466425,-151.0,0.000249,7]
[374579279,1753361466434,-430.26559,0.000249,7]
[374579280,1753361466447,-151.0,0.000249,7]
[374579281,1753361466457,-430.26559,0.000249,7]
[374579282,1753361466467,-151.0,0.000249,7]
[374579283,1753361466476,-206.0,0.000249,2]
[374579284,1753361466487,-206.0,0.000249,2]
[374579285,1753361466496,-206.0,0.000249,2]
[374579286,1753361466507,-151.0,0.000249,7]
[374579287,1753361466516,-151.0,0.000249,7]
[374579288,1753361466526,-151.0,0.000249,7]
[374579289,1753361466535,-500.0,0.000249,5]
[374579290,1753361466545,-155.497015,0.000249,5]
[374579291,1753361466554,-155.497015,0.000249,2]
[374579292,1753361466564,-151.0,0.000249,7]
[374579293,1753361466573,-151.0,0.000249,7]
[374579294,1753361466582,-500.0,0.000249,5]
[374579295,1753361466592,-151.0,0.000249,7]
[374579296,1753361466602,-151.0,0.000249,7]
[374579297,1753361466611,-227.2,0.000249,7]
[374579298,1753361466621,-155.497014,0.000249,5]
[374579299,1753361466630,-155.497014,0.000249,2]
[374579300,1753361466641,-807.62560805,0.000249,2]
[374579301,1753361466651,-151.181492,0.000249,7]
[374579302,1753361466660,-205.0,0.000249,2]
[374579303,1753361466671,-151.0,0.000249,7]
[374579304,1753361466680,-602938.2811,0.000249,2]
[374579305,1753361466690,-151.0,0.000249,7]
[374579306,1753361466699,-151.0,0.000249,7]
[374579307,1753361466709,-151.0,0.000249,7]
[374579308,1753361466719,-151.0,0.000249,7]
[374579309,1753361466728,-151.0,0.000249,7]
[374579310,1753361466738,-151.0,0.000249,7]
[374579311,1753361466748,-500.0,0.00024909,2]
[374579312,1753361466758,-716.77,0.00024925,3]
[374579313,1753361466767,-737.21,0.00024931,2]
[374579314,1753361466777,-371.20407136,0.00024931,2]
[374579315,1753361466787,-460.0,0.00024931,2]
[374579316,1753361466797,-460.0,0.00024931,2]
[374579317,1753361466807,-1581.12,0.00024931,2]
[374579318,1753361466817,-1484.39,0.00024931,2]
[374579319,1753361466827,-738.04,0.00024931,2]
[374579320,1753361466934,-460.0,0.00024931,2]
[374579321,1753361466944,-789.29,0.00024931,2]
[374579322,1753361466955,-842.97,0.00024931,2]
[374579323,1753361466965,-1729.15,0.00024931,2]
[374579324,1753361466976,-515.47,0.00024931,2]
[374579325,1753361466987,-462.73,0.00024931,2]
[374579326,1753361466997,-460.0,0.00024931,2]
[374579327,1753361467007,-534.52,0.00024931,2]
[374579328,1753361467017,-460.0,0.00024931,2]
[374579329,1753361467027,-474.63,0.00024931,2]
[374579330,1753361467036,-613.8,0.00024931,2]
[374579331,1753361467046,-494.14,0.00024931,2]
[374579332,1753361467057,-710.33,0.00024931,2]
[374579333,1753361467067,-4098.54,0.00024931,2]
[374579334,1753361467077,-1354.19,0.00024931,2]
[374579335,1753361467087,-557.79,0.00024931,2]
[374579336,1753361467097,-460.0,0.00024931,2]
[374579337,1753361467106,-608.79,0.00024931,2]
[374579338,1753361467116,-716.07,0.00024931,2]
[374579339,1753361467126,-2936.37,0.00024931,2]
[374579340,1753361467136,-1289.01,0.00024931,2]
[374579341,1753361467146,-849.86,0.00024931,2]
[374579342,1753361467156,-2616.6,0.00024931,2]
[374579343,1753361467166,-2502.37,0.00024931,2]
[374579344,1753361467176,-1164.14,0.00024931,2]
[374579345,1753361467186,-1050.05,0.00024931,2]
[374579346,1753361467195,-151.0,0.00024932,2]
[374579347,1753361467205,-500.0,0.00024932,2]
[374579348,1753361467214,-151.0,0.00024932,2]
[374579349,1753361467224,-500.0,0.00024932,2]
[374579350,1753361467233,-151.0,0.00024932,2]
[374579351,1753361467243,-151.0,0.00024932,2]
[374579352,1753361467252,-151.0,0.00024932,2]
[374579353,1753361467262,-151.0,0.00024932,2]
[374579354,1753361467272,-151.0,0.00024932,2]
[374579355,1753361467281,-712.0,0.00024932,2]
[374579356,1753361467291,-151.0,0.00024932,2]
[374579357,1753361467301,-151.0,0.00024932,2]
[374579358,1753361467310,-151.0,0.00024932,2]
[374579359,1753361467320,-633.69002538,0.00024932,2]
[374579360,1753361467329,-210.42481086,0.00024932,2]
[374579361,1753361467339,-589.0,0.00024932,2]
[374579362,1753361467348,-151.0,0.00024932,2]
[374579363,1753361467357,-151.0,0.00024932,2]
[374579364,1753361467368,-519.0,0.00024932,2]
[374579365,1753361467377,-155.497015,0.00024945,7]
[374579366,1753361467387,-3106.8963823,0.0002495,2]
[374579367,1753361467396,-5000.0,0.00024969,2]
[374579368,1753361467405,-150.14227199,0.00024973,2]
[374579369,1753361467415,-5090.07616374,0.00024976,2]
[374579370,1753361467424,-153.0,0.00024986,2]
[374579371,1753361467434,-153.0,0.00024986,2]
[374579372,1753361467448,-153.0,0.00024986,2]
[374579373,1753361467457,-200.0,0.00024999,2]
[374579374,1753361467467,-2000.0,0.00024999,10]
[374579375,1753361467477,-2000.0,0.00024999,10]
[374579376,1753361467486,-2000.0,0.00024999,10]
[374579377,1753361467497,-2000.0,0.00024999,10]
[374579378,1753361467507,-2000.0,0.00024999,10]
[374579379,1753361467518,-2000.0,0.00024999,10]
[374579380,1753361467528,-2000.0,0.00024999,10]
[374579381,1753361467539,-2000.0,0.00024999,10]
[374579382,1753361467548,-1478.97550599,0.00024999,7]
[374579383,1753361467558,-1124.78,0.00024999,10]
[374579384,1753361467567,-200.0,0.00025,7]
[374579385,1753361467577,-600.0,0.00025,2]
[374579386,1753361467587,-4952.63131142,0.00025,30]
[374579387,1753361467598,-204.03205314,0.00025,14]
[374579388,1753361467607,-2037.61767604,0.00025,14]
[374579389,1753361467617,-761568.21788116,0.00025,30]
[374579390,1753361467627,-33632.28595076,0.00025,7]
[374579391,1753361467639,-2619.3562146,0.00025,2]
[374579392,1753361467649,-207.70928344,0.00025,2]
[374579393,1753361467659,-10364.0,0.00025,2]
[374579394,1753361467669,-214.67886746,0.00025,30]
[374579395,1753361467678,-11500.0,0.00025,7]
[374579396,1753361467689,-1106.58685222,0.00025,30]
[374579397,1753361467698,-60021.71450154,0.00025,30]
[374579398,1753361467708,-9884.24913109,0.00025,30]
[374579399,1753361467718,-158.81,0.00025,14]
[374579400,1753361467728,-3021.74334618,0.00025,30]
[374579401,1753361467737,-2646.0,0.00025,10]
[374579402,1753361467747,-499.58,0.00025,30]
[374579403,1753361467757,-160.0,0.00025,3]
[374579404,1753361467767,-161.95864789,0.00025,5]
[374579405,1753361467777,-151.0,0.00025,7]
[374579406,1753361467786,-151.0,0.00025,7]
[374579407,1753361467796,-151.0,0.00025,7]
[374579408,1753361467805,-153.55048,0.00025,7]
[374579409,1753361467815,-151.0,0.00025,7]
[374579410,1753361467825,-151.0,0.00025,7]
[374579411,1753361467846,-1063.77924524,0.00025,2]
[374579412,1753361467862,-16001.39255002,0.00025,2]
[374579413,1753361467877,-93047.01830104,0.00025,2]
[374579414,1753361467894,-358.56660821,0.00025,2]
[374579415,1753361467909,-500.0,0.00025,2]
[374579416,1753361467926,-117488.68503986,0.00025,2]
[374579417,1753361467944,-151.0,0.00025,7]
[374579418,1753361467961,-151.0,0.00025,7]
[374579419,1753361467977,-151.0,0.00025,7]
[374579420,1753361467991,-151.0,0.00025,7]
[374579421,1753361468009,-151.0,0.00025,7]
[374579422,1753361468023,-151.0,0.00025,7]
[374579423,1753361468036,-151.0,0.00025,7]
[374579424,1753361468052,-151.0,0.00025,7]
[374579425,1753361468067,-151.0,0.00025,7]
[374579426,1753361468083,-151.0,0.00025,7]
[374579427,1753361468100,-151.0,0.00025,7]
[374579428,1753361468117,-151.0,0.00025,7]
[374579429,1753361468129,-151.0,0.00025,7]
[374579430,1753361468142,-151.0,0.00025,7]
[374579431,1753361468160,-229.622132,0.00025,7]
[374579432,1753361468176,-229.622132,0.00025,7]
[374579433,1753361468188,-229.622132,0.00025,7]
[374579434,1753361468204,-229.622132,0.00025,7]
[374579435,1753361468216,-219.205835,0.00025,7]
[374579436,1753361468228,-219.205835,0.00025,7]
[374579437,1753361468242,-219.205835,0.00025,7]
[374579438,1753361468255,-219.205835,0.00025,7]
[374579439,1753361468269,-151.0,0.00025,7]
[374579440,1753361468282,-151.0,0.00025,7]
[374579441,1753361468296,-160.0,0.00025,3]
[374579442,1753361468310,-395.835009,0.00025,7]
[374579443,1753361468323,-395.835009,0.00025,7]
[374579444,1753361468336,-395.835009,0.00025,7]
[374579445,1753361468349,-395.835009,0.00025,7]
[374579446,1753361468362,-151.0,0.00025,7]
[374579447,1753361468375,-793.122708,0.00025,7]
[374579448,1753361468390,-793.122708,0.00025,7]
[374579449,1753361468402,-793.122708,0.00025,7]
[374579450,1753361468415,-793.122708,0.00025,7]
[374579451,1753361468428,-151.0,0.00025,7]
[374579452,1753361468442,-151.0,0.00025,7]
[374579453,1753361468456,-305.714176,0.00025,7]
[374579454,1753361468467,-305.714176,0.00025,7]
[374579455,1753361468476,-305.714176,0.00025,7]
[374579456,1753361468487,-305.714178,0.00025,7]
[374579457,1753361468496,-151.0,0.00025,7]
[374579458,1753361468506,-151.0,0.00025,7]
[374579459,1753361468516,-430.26559,0.00025,7]
[374579460,1753361468527,-430.26559,0.00025,7]
[374579461,1753361468537,-151.0,0.00025,7]
[374579462,1753361468547,-151.0,0.00025,7]
[374579463,1753361468557,-151.0,0.00025,7]
[374579464,1753361468566,-151.0,0.00025,7]
[374579465,1753361468576,-151.0,0.00025,7]
[374579466,1753361468585,-151.0,0.00025,7]
[374579467,1753361468595,-151.0,0.00025,7]
[374579468,1753361468605,-151.0,0.00025,7]
[374579469,1753361468615,-151.0,0.00025,7]
[374579470,1753361468624,-151.0,0.00025,7]
[374579471,1753361468635,-151.708702,0.00025,7]
[374579472,1753361468644,-1980.239946,0.00025,5]
[374579473,1753361468654,-151.0,0.00025,7]
[374579474,1753361468664,-151.0,0.00025,7]
[374579475,1753361468674,-151.0,0.00025,7]
[374579476,1753361468683,-152.022095,0.00025,2]
[374579477,1753361468693,-151.0,0.00025,7]
[374579478,1753361468704,-151.0,0.00025,7]
[374579479,1753361468714,-160.0,0.00025,10]
[374579480,1753361468724,-160.0,0.00025,30]
[374579481,1753361468734,-160.0,0.00025,7]
[374579482,1753361468744,-526.24749348,0.00025,30]
[374579483,1753361468754,-526.24749348,0.00025,7]
[374579484,1753361468764,-151.0,0.00025,7]
[374579485,1753361468774,-151.0,0.00025,7]
[374579486,1753361468783,-151.0,0.00025,7]
[374579487,1753361468793,-151.0,0.00025,7]
[374579488,1753361468802,-203.23134,0.00025,2]
[374579489,1753361468812,-151.0,0.00025,7]
[374579490,1753361468821,-151.0,0.00025003,7]
[374579491,1753361468831,-166.67,0.0002501,7]
[374579492,1753361468841,-178.3912236,0.00025014,2]
[374579493,1753361468851,-306.1586121,0.00025014,2]
[374579494,1753361468861,-154.6022915,0.00025014,2]
[374579495,1753361468871,-159.2354349,0.00025014,2]
[374579496,1753361468882,-306.0,0.00025014,2]
[374579497,1753361468897,-168.0,0.00025018,2]
[374579498,1753361468907,-500.0,0.0002502,5]
[374579499,1753361468917,-500.0,0.0002502,5]
[374579500,1753361469181,-500.0,0.0002502,5]
[374579501,1753361469191,-716.77,0.00025025,6]
[374579502,1753361469201,-5000.0,0.00025026,30]
[374579503,1753361469210,-5000.0,0.00025026,30]
[374579504,1753361469220,-5000.0,0.00025026,30]
[374579505,1753361469230,-5000.0,0.00025026,30]
[374579506,1753361469239,-5000.0,0.00025026,30]
[374579507,1753361469249,-5000.0,0.00025026,30]
[374579508,1753361469259,-5000.0,0.00025026,30]
[374579509,1753361469269,-500.0,0.00025027,5]
[374579510,1753361469278,-500.0,0.00025027,5]
[374579511,1753361469288,-500.0,0.00025027,5]
[374579512,1753361469298,-500.0,0.00025027,5]
[374579513,1753361469309,-176857.67845412,0.00025037,15]
[374579514,1753361469319,-151.0,0.00025037,7]
[374579515,1753361469329,-238.238,0.00025037,7]
[374579516,1753361469338,-151.0,0.00025037,7]
[374579517,1753361469348,-151.0,0.00025037,7]
[374579518,1753361469358,-151.0,0.00025037,7]
[374579519,1753361469367,-151.0,0.00025037,7]
[374579520,1753361469377,-151.0,0.00025037,7]
[374579521,1753361469391,-151.0,0.00025037,7]
[374579522,1753361469401,-151.0,0.00025037,7]
[374579523,1753361469411,-151.0,0.00025037,7]
[374579524,1753361469420,-151.0,0.00025037,7]
[374579525,1753361469430,-151.0,0.00025037,7]
[374579526,1753361469439,-151.0,0.00025037,7]
[374579527,1753361469453,-268.107111,0.00025037,7]
[374579528,1753361469463,-151.0,0.00025037,7]
[374579529,1753361469473,-151.0,0.00025037,7]
[374579530,1753361469485,-151.0,0.00025037,7]
[374579531,1753361469495,-151.0,0.00025037,7]
[374579532,1753361469504,-151.0,0.00025037,7]
[374579533,1753361469514,-151.0,0.00025037,7]
[374579534,1753361469523,-151.0,0.00025037,7]
[374579535,1753361469533,-151.0,0.00025037,7]
[374579536,1753361469543,-151.0,0.00025037,7]
[374579537,1753361469553,-151.0,0.00025037,7]
[374579538,1753361469562,-151.0,0.00025037,7]
[374579539,1753361469572,-151.0,0.00025037,7]
[374579540,1753361469581,-1674.18014597,0.00025038,12]
[374579541,1753361469591,-159.9507963,0.00025041,2]
[374579542,1753361469601,-1155.10782,0.00025041,2]
[374579543,1753361469612,-178.2667198,0.00025041,2]
[374579544,1753361469622,-159.9507963,0.00025041,2]
[374579545,1753361469632,-178.2667198,0.00025041,2]
[374579546,1753361469645,-159.9507963,0.00025041,2]
[374579547,1753361469654,-178.2667198,0.00025041,2]
[374579548,1753361469663,-178.2667198,0.00025041,2]
[374579549,1753361469673,-178.2667198,0.00025041,2]
[374579550,1753361469682,-295.0,0.00025044,2]
[374579551,1753361469692,-596.0,0.00025086,2]
[374579552,1753361469702,-809.0,0.00025086,2]
[374579553,1753361469711,-5888.0,0.00025094,2]
[374579554,1753361469723,-4000.0,0.000251,4]
[374579555,1753361469733,-151.0,0.000251,7]
[374579556,1753361469743,-151.0,0.000251,7]
[374579557,1753361469754,-11500.0,0.000251,10]
[374579558,1753361469764,-716.77,0.00025125,3]
[374579559,1753361469774,-500.0,0.00025155,2]
[374579560,1753361469785,-500.0,0.00025178,2]
[374579561,1753361469795,-151.0,0.00025205,7]
[374579562,1753361469804,-395.835009,0.00025205,7]
[374579563,1753361469814,-395.835009,0.00025205,7]
[374579564,1753361469823,-793.122708,0.00025205,7]
[374579565,1753361469832,-793.122708,0.00025205,7]
[374579566,1753361469842,-151.0,0.00025205,7]
[374579567,1753361469852,-219.229133,0.00025205,7]
[374579568,1753361469862,-737.21,0.00025205,2]
[374579569,1753361469872,-460.0,0.00025205,2]
[374579570,1753361469882,-460.0,0.00025205,2]
[374579571,1753361469893,-1581.12,0.00025205,2]
[374579572,1753361469903,-1484.39,0.00025205,2]
[374579573,1753361469913,-738.04,0.00025205,2]
[374579574,1753361469923,-322.67,0.00025205,2]
[374579575,1753361469932,-789.29,0.00025205,2]
[374579576,1753361469942,-842.97,0.00025205,2]
[374579577,1753361469952,-1729.15,0.00025205,2]
[374579578,1753361469962,-515.47,0.00025205,2]
[374579579,1753361469971,-462.73,0.00025205,2]
[374579580,1753361469981,-162.9946538,0.00025205,2]
[374579581,1753361469991,-534.52,0.00025205,2]
[374579582,1753361470000,-460.0,0.00025205,2]
[374579583,1753361470010,-474.63,0.00025205,2]
[374579584,1753361470019,-613.8,0.00025205,2]
[374579585,1753361470029,-494.14,0.00025205,2]
[374579586,1753361470038,-710.33,0.00025205,2]
[374579587,1753361470048,-4098.54,0.00025205,2]
[374579588,1753361470058,-1354.19,0.00025205,2]
[374579589,1753361470067,-557.79,0.00025205,2]
[374579590,1753361470077,-460.0,0.00025205,2]
[374579591,1753361470087,-608.79,0.00025205,2]
[374579592,1753361470097,-716.07,0.00025205,2]